fUST/lending_fUST_20250110
["ID","MTS","AMOUNT","RATE_DAILY","PERIOD"]
[348327555,1736446244114,-971.42,0.00021067,3]
[348327557,1736446244123,-1073.17,0.00021067,3]
[348327559,1736446244133,-169.287051,0.00021178,2]
[348327561,1736446244143,-500.0,0.00021299,3]
[348327563,1736446244152,-417.15392333,0.00021299,2]
[348327565,1736446244162,-5585.623992,0.000213,2]
[348327566,1736446244174,-387.93792108,0.00021311,3]
[348327568,1736446244183,-500.0,0.00021317,2]
[348327570,1736446244192,-564.2,0.00021317,3]
[348327572,1736446244201,-500.0,0.00021317,3]
[348327574,1736446244211,-519.06,0.00021326,3]
[348327576,1736446244220,-4420.46,0.00021326,3]
[348327578,1736446244229,-325.94,0.00021339,3]
[348327580,1736446244239,-783.62,0.00021339,3]
[348327582,1736446244249,-537.82,0.00021339,3]
[348327584,1736446244259,-193.894594,0.00021339,2]
[348327586,1736446244268,-193.894594,0.00021339,2]
[348327587,1736446244278,-971.42,0.00021341,3]
[348327589,1736446244287,-1073.17,0.00021341,3]
[348327591,1736446244296,-169.287051,0.00021397,2]
[348327592,1736446244305,-500.0,0.00021591,2]
[348327593,1736446244315,-564.2,0.00021591,3]
[348327595,1736446244324,-522.76064249,0.00021591,3]
[348327597,1736446244334,-3307.0,0.000216,4]
[348327598,1736446244344,-519.06,0.000216,3]
[348327599,1736446244354,-4420.46,0.000216,3]
[348327600,1736446244365,-783.62,0.00021613,3]
[348327601,1736446244374,-537.82,0.00021613,3]
[348327602,1736446244384,-971.42,0.00021615,3]
[348327603,1736446244394,-1073.17,0.00021615,3]
[348327604,1736446244404,-169.287051,0.00021616,2]
[348327605,1736446244414,-420.0,0.00021713,2]
[348327606,1736446244427,-417.15392333,0.00021782,2]
[348327607,1736446244437,-169.287051,0.00021836,2]
[348327608,1736446244446,-500.0,0.00021865,2]
[348327609,1736446244455,-564.2,0.00021865,3]
[348327610,1736446244465,-519.06,0.00021874,3]
[348327611,1736446244475,-4420.46,0.00021874,3]
[348327612,1736446244484,-783.62,0.00021887,3]
[348327613,1736446244494,-537.82,0.00021887,3]
[348327614,1736446244504,-971.42,0.00021889,3]
[348327615,1736446244513,-1073.17,0.00021889,3]
[348327616,1736446244523,-169.287051,0.00022055,2]
[348327617,1736446244532,-500.0,0.00022139,2]
[348327618,1736446244541,-564.2,0.00022139,3]
[348327619,1736446244551,-519.06,0.00022148,3]
[348327620,1736446244560,-4420.46,0.00022148,3]
[348327621,1736446244570,-661.485,0.0002216,2]
[348327622,1736446244579,-783.62,0.00022161,3]
[348327623,1736446244589,-537.82,0.00022161,3]
[348327624,1736446244600,-971.42,0.00022163,3]
[348327625,1736446244612,-1073.17,0.00022163,3]
[348327627,1736446244632,-535.0,0.00022209,2]
[348327629,1736446244851,-2076.0,0.00022209,2]
[348327630,1736446244862,-2317.0,0.00022209,2]
[348327632,1736446244872,-417.15392333,0.00022265,2]
[348327634,1736446244882,-258.0,0.000224,7]
[348327636,1736446244891,-500.0,0.00022413,2]
[348327638,1736446244902,-564.2,0.00022413,3]
[348327640,1736446244911,-519.06,0.00022422,3]
[348327642,1736446244923,-4420.46,0.00022422,3]
[348327644,1736446244933,-783.62,0.00022435,3]
[348327646,1736446244943,-537.82,0.00022435,3]
[348327648,1736446244952,-971.42,0.00022437,3]
[348327649,1736446244962,-1073.17,0.00022437,3]
[348327650,1736446244971,-191.260098,0.00022437,7]
[348327651,1736446244980,-153.7772247,0.00022521,2]
[348327652,1736446244989,-500.0,0.00022647,2]
[348327653,1736446244998,-2500.0,0.00022657,3]
[348327654,1736446245007,-2500.0,0.00022666,3]
[348327655,1736446245017,-2500.0,0.00022674,3]
[348327656,1736446245027,-2500.0,0.00022683,3]
[348327657,1736446245036,-500.0,0.00022687,2]
[348327658,1736446245045,-564.2,0.00022687,3]
[348327659,1736446245054,-2500.0,0.00022692,3]
[348327660,1736446245064,-519.06,0.00022696,3]
[348327661,1736446245073,-4420.46,0.00022696,3]
[348327662,1736446245082,-2500.0,0.00022701,3]
[348327663,1736446245091,-783.62,0.00022709,3]
[348327664,1736446245100,-537.82,0.00022709,3]
[348327665,1736446245110,-2500.0,0.0002271,3]
[348327666,1736446245119,-193.894594,0.00022711,7]
[348327667,1736446245128,-971.42,0.00022711,3]
[348327668,1736446245138,-193.894594,0.00022711,7]
[348327669,1736446245147,-1073.17,0.00022711,3]
[348327670,1736446245158,-151.11221738,0.00022719,2]
[348327671,1736446245170,-266.45900204,0.00022719,2]
[348327672,1736446245179,-417.15392333,0.00022748,2]
[348327673,1736446245188,-5022.53925108,0.00022768,2]
[348327674,1736446245198,-153.6911881,0.00022795,2]
[348327675,1736446245207,-500.0,0.00022961,2]
[348327676,1736446245216,-564.2,0.00022961,3]
[348327678,1736446245226,-519.06,0.0002297,3]
[348327680,1736446245235,-4420.46,0.0002297,3]
[348327682,1736446245244,-1294.18627033,0.0002298,14]
[348327684,1736446245254,-783.62,0.00022983,3]
[348327686,1736446245264,-537.82,0.00022983,3]
[348327688,1736446245274,-971.42,0.00022985,3]
[348327690,1736446245284,-1073.17,0.00022985,3]
[348327692,1736446245294,-151.0,0.00023,10]
[348327694,1736446245306,-928.0,0.00023,2]
[348327696,1736446245319,-150.0,0.00023018,2]
[348327698,1736446245330,-1987.0,0.00023032,2]
[348327700,1736446245340,-151.0,0.000231,10]
[348327711,1736446245441,-151.0,0.000231,9]
[348327713,1736446245451,-1000.0,0.00023139,2]
[348327715,1736446245461,-1000.0,0.00023147,2]
[348327717,1736446245470,-151.0,0.000232,8]
[348327719,1736446245480,-151.0,0.000232,5]
[348327721,1736446245490,-1063.27,0.000232,2]
[348327723,1736446245499,-1000.0,0.00023231,2]
[348327725,1736446245509,-417.15392333,0.00023231,2]
[348327727,1736446245518,-500.0,0.00023235,2]
[348327729,1736446245528,-564.2,0.00023235,3]
[348327731,1736446245539,-519.06,0.00023244,3]
[348327733,1736446245548,-4420.46,0.00023244,3]
[348327735,1736446245558,-783.62,0.00023257,3]
[348327737,1736446245568,-537.82,0.00023257,3]
[348327739,1736446245578,-971.42,0.00023259,3]
[348327741,1736446245588,-1073.17,0.00023259,3]
[348327743,1736446245597,-2115.2,0.000233,2]
[348327745,1736446245608,-2000.0,0.000233,2]
[348327747,1736446245618,-2000.0,0.000233,2]
[348327750,1736446245627,-1000.0,0.00023307,2]
[348327753,1736446245639,-500.0,0.00023312,9]
[348327755,1736446245649,-439.60550889,0.00023317,2]
[348327757,1736446245658,-193.894594,0.00023318,7]
[348327760,1736446245670,-193.894594,0.00023318,7]
[348327762,1736446245681,-3307.0,0.00023328,7]
[348327765,1736446245690,-193.894594,0.0002333,7]
[348327768,1736446245700,-193.894594,0.0002333,7]
[348327771,1736446245710,-193.894594,0.0002333,7]
[348327773,1736446245720,-193.894594,0.0002333,7]
[348327775,1736446245730,-193.894594,0.0002333,7]
[348327777,1736446245739,-193.894594,0.0002333,7]
[348327779,1736446245749,-193.894594,0.0002333,7]
[348327782,1736446245759,-193.894594,0.0002333,7]
[348327784,1736446245771,-193.894594,0.0002333,7]
[348327786,1736446245781,-193.894594,0.0002333,7]
[348327787,1736446245790,-193.894594,0.0002333,7]
[348327789,1736446245799,-193.894594,0.0002333,7]
[348327792,1736446245810,-193.894594,0.0002333,7]
[348327793,1736446245819,-193.894601,0.0002333,7]
[348327796,1736446245829,-89425.7864292,0.0002333,5]
[348327797,1736446245841,-25233.96798714,0.0002333,5]
[348327800,1736446245851,-218512.387493,0.00023331,10]
[348327802,1736446245866,-16075.2978958,0.00023331,10]
[348327869,1736446246352,-205.0,0.00022,2]
[348327871,1736446246363,-394.0,0.00022806,2]
[348327873,1736446246373,-500.0488,0.00023075,2]
[348327875,1736446246385,-499.9512,0.00023075,2]
[348327877,1736446246394,-11223.94024071,0.00023331,10]
[348330619,1736446708295,160.360934,0.00013973,2]
[348330627,1736447156147,-284.35043619,0.000188,2]
[348330628,1736447156168,-10.92011266,0.00018882,2]
[348330632,1736447230149,-404.0872407,0.00018782,2]
[348330633,1736447230172,-300.0,0.0001888,2]
[348330634,1736447230195,-340.174127,0.0001888,2]
[348330635,1736447233098,-592.98959509,0.0001888,2]
[348330636,1736447237101,-2792.20717786,0.0001888,2]
[348330637,1736447237131,-757.96460716,0.0001888,2]
[348330638,1736447241113,-1239.08835394,0.0001888,2]
[348330641,1736447345205,-220.40919934,0.00017,7]
[348330642,1736447345227,-250.0,0.00018101,2]
[348330643,1736447345248,-10674.83735886,0.00018878,2]
[348330644,1736447349109,-23321.16264114,0.00018878,2]
[348330645,1736447349131,-300.0,0.00018878,2]
[348330646,1736447349152,-918.35961543,0.00018882,2]
[348330647,1736447349176,-350.0,0.00018883,2]
[348330648,1736447349198,-500.0,0.00018883,2]
[348330649,1736447349222,-500.0,0.00018883,2]
[348330650,1736447349246,-500.0,0.00018883,2]
[348330651,1736447349271,-500.0,0.00018883,2]
[348330652,1736447349292,-500.0,0.00018883,2]
[348330653,1736447349315,-374.86840542,0.00018883,2]
[348330654,1736447349339,-500.0,0.00018883,2]
[348330655,1736447349362,-500.0,0.00018883,2]
[348330656,1736447349383,-500.0,0.00018883,2]
[348330657,1736447349405,-361.6787133,0.00018883,2]
[348330658,1736447349427,-500.0,0.00018883,2]
[348330659,1736447349451,-500.0,0.00018883,2]
[348330660,1736447349476,-404.56650632,0.00018883,2]
[348330661,1736447349497,-500.0,0.00018883,2]
[348330662,1736447349520,-500.0,0.00018883,2]
[348330663,1736447349542,-500.0,0.00018883,2]
[348330664,1736447349565,-500.0,0.00018883,2]
[348330665,1736447349588,-500.0,0.00018883,2]
[348330666,1736447349613,-500.0,0.00018883,2]
[348330667,1736447349636,-500.0,0.00018883,2]
[348330668,1736447349659,-500.0,0.00018883,2]
[348330669,1736447349681,-500.0,0.00018883,2]
[348330670,1736447349703,-500.0,0.00018883,2]
[348330671,1736447349725,-500.0,0.00018883,2]
[348330672,1736447349747,-500.0,0.00018883,2]
[348330673,1736447349770,-500.0,0.00018883,2]
[348330674,1736447349792,-500.0,0.00018883,2]
[348330675,1736447349813,-500.0,0.00018883,2]
[348330676,1736447349834,-179.35419066,0.00018883,2]
[348330677,1736447349855,-1514.72065428,0.00018885,2]
[348330678,1736447369094,-22974.29428852,0.00018885,2]
[348330679,1736447369119,-4701.3704777,0.00018938,2]
[348330680,1736447369140,-150.0,0.00019,2]
[348330681,1736447369165,-500.0,0.00019178,2]
[348330682,1736447369190,-500.0,0.00019178,2]
[348330683,1736447369213,-500.0,0.00019178,2]
[348330684,1736447369237,-500.0,0.00019178,2]
[348330685,1736447369259,-500.0,0.00019178,2]
[348330686,1736447369280,-500.0,0.00019178,2]
[348330687,1736447369302,-349.65050965,0.00019178,2]
[348330688,1736447369323,-500.0,0.00019178,2]
[348330689,1736447369345,-500.0,0.00019178,2]
[348330690,1736447369367,-398.08152413,0.00019178,2]
[348330691,1736447374126,-101.91847587,0.00019178,2]
[348330692,1736447374149,-500.0,0.00019178,2]
[348330693,1736447374175,-500.0,0.00019178,2]
[348330694,1736447374195,-164.051294,0.00019178,2]
[348330695,1736447374218,-201.5093819,0.00019404,2]
[348330696,1736447374241,-500.0,0.00019452,2]
[348330697,1736447374265,-500.0,0.00019452,3]
[348330698,1736447374288,-500.0,0.00019452,3]
[348330699,1736447374313,-263.49264823,0.00019452,3]
[348330755,1736447432796,-190.02328871,0.00018872,2]
[348330757,1736447432806,-155.08102194,0.000189,2]
[348330768,1736447432912,-532.28406039,0.000189,2]
[348330770,1736447432922,-300.0,0.00019177,2]
[348330772,1736447432933,-500.0,0.00019178,2]
[348330774,1736447432942,-500.0,0.00019178,2]
[348330776,1736447432952,-500.0,0.00019178,2]
[348330778,1736447432962,-500.0,0.00019178,2]
[348330780,1736447432971,-500.0,0.00019178,2]
[348330782,1736447432980,-500.0,0.00019178,2]
[348330784,1736447432990,-500.0,0.00019178,2]
[348330786,1736447432999,-500.0,0.00019178,2]
[348330788,1736447433009,-500.0,0.00019178,2]
[348330790,1736447433018,-500.0,0.00019178,2]
[348330792,1736447433028,-500.0,0.00019178,2]
[348330794,1736447433037,-363.56365654,0.00019178,2]
[348330797,1736447433050,-136.43634346,0.00019178,2]
[348330799,1736447433059,-242.84735177,0.00019452,3]
[348330801,1736447433069,-411.72120442,0.00019452,3]
[348330805,1736447433101,-221.03326719,0.00019452,3]
[348330807,1736447433112,-500.0,0.00019726,2]
[348330809,1736447433121,-500.0,0.00019726,3]
[348330811,1736447433132,-500.0,0.00019726,3]
[348330813,1736447433143,-353.57633556,0.00019835,2]
[348330815,1736447433153,-499.50363533,0.0001984,2]
[348330817,1736447433162,-167.592,0.0001984,2]
[348330819,1736447433173,-500.0,0.00019933,3]
[348330821,1736447433184,-500.0,0.00019933,3]
[348330822,1736447433194,-500.0,0.00019933,3]
[348330824,1736447433204,-500.0,0.00019933,3]
[348330826,1736447433214,-500.0,0.00019933,3]
[348330829,1736447433224,-500.0,0.00019933,3]
[348330831,1736447433234,-500.0,0.00019933,3]
[348330833,1736447433244,-471.75134337,0.00019933,3]
[348330835,1736447433257,-28.24865663,0.00019933,3]
[348330837,1736447433267,-500.0,0.00019933,3]
[348330839,1736447433278,-471.45801257,0.00019933,3]
[348330919,1736447438491,-500.0,0.00019178,2]
[348330921,1736447438500,-500.0,0.00019178,2]
[348330923,1736447438511,-500.0,0.00019178,2]
[348330925,1736447438521,-500.0,0.00019452,3]
[348330927,1736447438531,-28.54198743,0.00019933,3]
[348330929,1736447438540,-500.0,0.00019933,3]
[348330931,1736447438550,-500.0,0.00019933,3]
[348330933,1736447438561,-500.0,0.00019933,3]
[348330935,1736447438571,-500.0,0.00019933,3]
[348330937,1736447438581,-500.0,0.00019933,3]
[348330939,1736447438591,-500.0,0.00019933,3]
[348330941,1736447438600,-500.0,0.00019933,3]
[348330943,1736447438609,-500.0,0.00019933,3]
[348330945,1736447438619,-500.0,0.00019933,3]
[348330947,1736447438629,-482.13450664,0.00019933,3]
[348330949,1736447438638,-500.0,0.00019933,3]
[348330951,1736447438647,-500.0,0.00019933,3]
[348330953,1736447438656,-500.0,0.00019933,3]
[348330955,1736447438665,-500.0,0.00019933,3]
[348330957,1736447438675,-500.0,0.00019933,3]
[348330959,1736447438686,-500.0,0.00019933,3]
[348330961,1736447438696,-500.0,0.00019933,3]
[348330963,1736447438705,-523.60126946,0.00019933,3]
[348330965,1736447438714,-500.0,0.00019933,3]
[348330967,1736447438725,-500.0,0.00019933,3]
[348330969,1736447438735,-500.0,0.00019933,3]
[348330971,1736447438745,-500.0,0.00019933,3]
[348330973,1736447438755,-2899.63,0.00019933,3]
[348330974,1736447438764,-500.0,0.00019933,3]
[348330975,1736447438773,-500.0,0.00019933,3]
[348330976,1736447438783,-169.28370037,0.00019933,3]
[348330978,1736447438792,-500.0,0.00019933,3]
[348330980,1736447438802,-500.31062426,0.00019935,3]
[348330982,1736447438812,-500.0,0.00019935,3]
[348330984,1736447438822,-500.0,0.00019935,3]
[348330986,1736447438832,-500.0,0.00019935,3]
[348330988,1736447438842,-500.0,0.00019935,3]
[348330990,1736447438851,-500.0,0.00019935,3]
[348330992,1736447438861,-500.0,0.00019935,3]
[348330994,1736447438870,-500.0,0.00019935,3]
[348330996,1736447438879,-500.0,0.00019935,3]
[348330998,1736447438888,-500.0,0.00019935,3]
[348331000,1736447438898,-208.31871171,0.00019938,2]
[348331002,1736447438907,-500.0,0.00019938,2]
[348331004,1736447438917,-297.70602118,0.00019938,2]
[348331006,1736447438927,-322.72961181,0.00019938,2]
[348331008,1736447438939,-153.88,0.00019938,2]
[348331010,1736447438948,-500.0,0.00019939,3]
[348331012,1736447438957,-502.79874249,0.00019939,3]
[348331014,1736447438967,-500.0,0.00019939,3]
[348331016,1736447438976,-431.35853175,0.00019939,3]
[348331018,1736447438986,-500.0,0.00019939,3]
[348331020,1736447438997,-500.0,0.00019939,3]
[348331022,1736447439007,-207.52198865,0.00019939,3]
[348331024,1736447439016,-500.0,0.00019939,3]
[348331026,1736447439026,-503.87837322,0.00019939,3]
[348331028,1736447439035,-501.2924336,0.00019939,3]
[348331031,1736447439045,-500.0,0.00019939,3]
[348331033,1736447439055,-500.0,0.00019939,3]
[348331034,1736447439064,-267.01349743,0.00019939,3]
[348331043,1736447439138,-232.98650257,0.00019939,3]
[348331045,1736447439148,-500.0,0.00019939,3]
[348331047,1736447439157,-332.03106176,0.00019939,3]
[348331049,1736447439167,-500.0,0.00019939,3]
[348331051,1736447439177,-500.0,0.00019939,3]
[348331053,1736447439190,-500.0,0.00019939,3]
[348331055,1736447439199,-500.0,0.00019939,3]
[348331057,1736447439208,-500.0,0.00019939,3]
[348331059,1736447439218,-463.53951328,0.00019939,3]
[348331061,1736447439227,-500.0,0.00019939,3]
[348331063,1736447439236,-500.0,0.00019939,3]
[348331065,1736447439245,-500.0,0.00019939,2]
[348331067,1736447439255,-500.0,0.00019939,3]
[348331069,1736447439265,-500.0,0.00019939,3]
[348331071,1736447439274,-500.55265371,0.00019939,3]
[348331073,1736447439283,-500.0,0.00019939,3]
[348331075,1736447439292,-500.0,0.00019939,3]
[348331077,1736447439301,-500.0,0.00019939,3]
[348331079,1736447439311,-500.0,0.00019939,3]
[348331081,1736447439320,-500.0,0.00019939,3]
[348331083,1736447439330,-500.0,0.00019939,3]
[348331085,1736447439339,-500.0,0.00019939,3]
[348331087,1736447439348,-500.0,0.00019939,3]
[348331089,1736447439357,-500.0,0.00019939,3]
[348331091,1736447439367,-500.0,0.00019939,3]
[348331093,1736447439377,-500.0,0.00019939,3]
[348331095,1736447439386,-182.09454652,0.00019939,3]
[348331097,1736447439396,-500.0,0.00019939,3]
[348331099,1736447439405,-500.0,0.00019939,3]
[348331101,1736447439414,-500.25213752,0.00019939,3]
[348331103,1736447439423,-500.66391752,0.00019939,3]
[348331105,1736447439435,-500.0,0.00019939,3]
[348331107,1736447439443,-500.36409861,0.00019939,3]
[348331109,1736447439452,-500.0,0.00019939,3]
[348331111,1736447439462,-505.88130915,0.00019939,3]
[348331113,1736447439472,-501.07854203,0.00019939,3]
[348331115,1736447439481,-500.0,0.00019939,3]
[348331117,1736447439491,-500.0,0.00019939,3]
[348331119,1736447439500,-500.0,0.00019939,3]
[348331121,1736447439509,-200.0,0.00019939,3]
[348331123,1736447439519,-229.86936269,0.00019939,3]
[348331125,1736447439528,-500.0,0.00019939,3]
[348331127,1736447439537,-500.0,0.00019939,3]
[348331129,1736447439547,-500.0,0.00019939,3]
[348331131,1736447439556,-500.0,0.00019939,3]
[348331133,1736447439566,-546.97670704,0.00019939,3]
[348331135,1736447439576,-500.0,0.00019939,3]
[348331137,1736447439585,-500.0,0.00019939,3]
[348331139,1736447439594,-601.6277443,0.00019939,3]
[348331141,1736447439603,-510.35238592,0.00019939,3]
[348331143,1736447439614,-500.0,0.00019939,3]
[348331145,1736447439623,-436.62868547,0.00019939,3]
[348331147,1736447439633,-500.0,0.00019939,3]
[348331149,1736447439643,-500.0,0.00019939,3]
[348331151,1736447439653,-595.13322512,0.00019939,3]
[348331153,1736447439662,-499.56232087,0.00019939,3]
[348331155,1736447439671,-500.0,0.00019939,3]
[348331157,1736447439683,-500.0,0.00019939,3]
[348331159,1736447439692,-500.0,0.00019939,3]
[348331161,1736447439702,-500.0,0.00019939,3]
[348331163,1736447439711,-500.0,0.00019939,3]
[348331165,1736447439720,-381.03952581,0.00019939,3]
[348331167,1736447439731,-511.66472479,0.00019939,3]
[348331169,1736447439740,-500.0,0.00019939,3]
[348331171,1736447439750,-500.0,0.00019939,3]
[348331173,1736447439759,-500.0,0.00019939,3]
[348331175,1736447439768,-500.0,0.00019939,3]
[348331177,1736447439779,-508.90247428,0.00019939,3]
[348331179,1736447439788,-500.0,0.00019939,3]
[348331181,1736447439797,-500.0,0.00019939,3]
[348331183,1736447439807,-500.0,0.00019939,3]
[348331186,1736447439817,-500.0,0.00019939,3]
[348331188,1736447439826,-500.0,0.00019939,3]
[348331189,1736447439836,-500.0,0.00019939,3]
[348331192,1736447439845,-500.0,0.00019939,3]
[348331194,1736447439855,-500.0,0.00019939,3]
[348331196,1736447439864,-500.0,0.00019939,3]
[348331197,1736447439874,-500.0,0.00019939,3]
[348331200,1736447439884,-500.0,0.00019939,3]
[348331202,1736447439893,-502.98895973,0.00019939,3]
[348331204,1736447439902,-500.0,0.00019939,3]
[348331206,1736447439912,-500.0,0.00019939,3]
[348331208,1736447439921,-500.0,0.00019939,3]
[348331210,1736447439932,-500.0,0.00019939,3]
[348331211,1736447439942,-502.32278179,0.00019939,3]
[348331214,1736447439951,-500.0,0.00019939,3]
[348331216,1736447439961,-500.0,0.00019939,3]
[348331218,1736447439970,-500.0,0.00019939,3]
[348331220,1736447439980,-500.0,0.00019939,3]
[348331230,1736447440071,-500.0,0.00019939,3]
[348331233,1736447440083,-500.0,0.00019939,3]
[348331235,1736447440095,-500.0,0.00019939,7]
[348331237,1736447440107,-500.0,0.00019939,3]
[348331239,1736447440117,-500.0,0.00019939,3]
[348331241,1736447440126,-500.0,0.00019939,3]
[348331243,1736447440136,-500.0,0.00019939,3]
[348331245,1736447440146,-500.0,0.00019939,3]
[348331247,1736447440156,-500.0,0.00019939,3]
[348331249,1736447440165,-500.0,0.00019939,3]
[348331251,1736447440176,-500.0,0.00019939,3]
[348331253,1736447440188,-500.0,0.00019939,3]
[348331255,1736447440198,-500.0,0.00019939,3]
[348331257,1736447440208,-500.0,0.00019941,3]
[348331259,1736447440218,-500.0,0.00019941,3]
[348331261,1736447440227,-500.0,0.00019941,3]
[348331263,1736447440237,-500.0,0.00019941,3]
[348331265,1736447440246,-280.22213498,0.00019941,3]
[348331267,1736447440256,-500.0,0.00019941,3]
[348331269,1736447440265,-548.45545257,0.00019941,3]
[348331271,1736447440275,-500.0,0.00019941,3]
[348331273,1736447440284,-500.0,0.00019941,3]
[348331275,1736447440294,-500.0,0.00019941,3]
[348331277,1736447440303,-500.0,0.00019941,3]
[348331279,1736447440314,-500.0,0.00019941,3]
[348331281,1736447440324,-500.0,0.00019941,3]
[348331283,1736447440333,-628.77110079,0.00019941,3]
[348331284,1736447440343,-520.71,0.00019941,3]
[348331285,1736447440352,-500.0,0.0001995,3]
[348331286,1736447440361,-500.0,0.0001995,3]
[348331287,1736447440371,-381.03952581,0.0001995,3]
[348331288,1736447440381,-501.18358387,0.00019953,3]
[348331289,1736447440391,-500.0,0.00019953,3]
[348331290,1736447440401,-637.58638387,0.00019953,3]
[348331291,1736447440410,-500.0,0.00019953,2]
[348331292,1736447440420,-500.0,0.00019953,2]
[348331293,1736447440431,-500.0,0.00019953,3]
[348331294,1736447440440,-535.53254923,0.00019953,3]
[348331295,1736447440450,-503.44772345,0.00019953,3]
[348331296,1736447440459,-500.0,0.00019953,3]
[348331297,1736447440469,-352.24755768,0.00019953,3]
[348331298,1736447440479,-500.0,0.00019956,3]
[348331299,1736447440488,-500.0,0.00019956,3]
[348331300,1736447440497,-511.14595634,0.00019956,3]
[348331301,1736447440507,-587.82425264,0.00019956,3]
[348331302,1736447440517,-500.0,0.00019956,3]
[348331303,1736447440527,-500.0,0.00019956,3]
[348331304,1736447440536,-500.0,0.00019956,3]
[348331305,1736447440546,-500.0,0.00019956,3]
[348331306,1736447440555,-500.0,0.00019956,3]
[348331307,1736447440565,-500.0,0.00019956,3]
[348331309,1736447440574,-500.0,0.00019956,3]
[348331311,1736447440584,-500.0,0.00019956,3]
[348331313,1736447440594,-500.0,0.00019956,3]
[348331315,1736447440605,-626.28198058,0.00019956,3]
[348331317,1736447440615,-500.0,0.00019956,3]
[348331319,1736447440625,-500.0,0.00019956,3]
[348331322,1736447440635,-500.0,0.00019956,3]
[348331324,1736447440644,-500.0,0.00019956,3]
[348331325,1736447440654,-500.0,0.00019956,3]
[348331327,1736447440663,-500.0,0.00019956,3]
[348331329,1736447440674,-500.0,0.00019956,3]
[348331332,1736447440685,-500.0,0.00019956,3]
[348331333,1736447440695,-500.0,0.00019956,3]
[348331335,1736447440704,-150.0,0.00019956,3]
[348331337,1736447440714,-500.0,0.00019956,3]
[348331339,1736447440724,-500.0,0.00019956,3]
[348331341,1736447440733,-500.0,0.00019956,3]
[348331344,1736447440743,-500.0,0.00019956,3]
[348331345,1736447440753,-515.15025277,0.00019956,3]
[348331347,1736447440763,-500.0,0.00019956,3]
[348331349,1736447440773,-500.0,0.00019956,3]
[348331351,1736447440784,-500.0,0.00019956,3]
[348331354,1736447440795,-518.71050624,0.00019956,3]
[348331355,1736447440805,-500.0,0.00019956,3]
[348331358,1736447440815,-500.0,0.00019956,3]
[348331359,1736447440824,-500.0,0.00019956,3]
[348331362,1736447440835,-500.0,0.00019956,3]
[348331364,1736447440846,-500.0,0.00019958,3]
[348331366,1736447440856,-500.0,0.00019969,3]
[348331368,1736447440866,-500.0,0.00019969,3]
[348331370,1736447440876,-527.32,0.00019969,3]
[348331372,1736447440885,-500.0,0.00019969,3]
[348331374,1736447440895,-500.0,0.00019969,3]
[348331375,1736447440906,-507.91862511,0.00019969,3]
[348331377,1736447440915,-697.78,0.00019971,3]
[348331380,1736447440926,-501.17272382,0.00019973,2]
[348331382,1736447440937,-268.17868988,0.00019973,2]
[348331383,1736447440947,-152.1132415,0.00019973,2]
[348331386,1736447440957,-194.28222329,0.00019973,2]
[348331387,1736447440967,-151.11240997,0.00019973,2]
[348331390,1736447440977,-151.11251884,0.00019973,2]
[348331392,1736447440987,-500.98205997,0.00019973,2]